bitfinex-derivatives/quotes_BTCF0:USTF0_20241008
["timestamp","ask_amount","ask_price","bid_price","bid_amount"]
[1728407667681,0.082088,62459.0,62452.0,0.02477712]
[1728407667682,0.080096,62455.0,62452.0,0.02477712]
[1728407667883,0.082088,62459.0,62451.0,0.080098]
[1728407667884,0.080098,62452.0,62451.0,0.080098]
[1728407668381,0.080101,62449.0,62445.0,0.00088]
[1728407668582,0.6408,62452.0,62445.0,0.02494132]
[1728407668583,0.080104,62447.0,62445.0,0.02494132]
[1728407668788,0.0801,62450.0,62443.0,0.3608]
[1728407668980,0.0801,62450.0,62449.0,0.0801]
[1728407669689,0.3608,62452.0,62443.0,0.3608]
[1728407669690,0.3608,62452.0,62451.0,0.080098]
[1728407669890,0.3608,62452.0,62448.0,0.28]
[1728407669891,0.080091,62457.0,62448.0,0.6408]
[1728407670192,0.080091,62457.0,62449.0,0.3884]
[1728407670386,0.080091,62457.0,62456.0,0.080092]
[1728407670587,0.080091,62457.0,62449.0,0.3884]
[1728407670588,0.3608,62460.0,62458.0,0.080089]
[1728407670783,0.440887,62460.0,62459.0,0.080088]
[1728407670984,0.49833777,62460.0,62459.0,0.080088]
[1728407671293,0.41825077,62460.0,62459.0,0.080088]
[1728407671502,0.49833777,62460.0,62459.0,0.080088]
[1728407672089,0.49833777,62460.0,62459.0,0.081088]
[1728407673189,0.41825077,62460.0,62459.0,0.081088]
[1728407673683,0.41825077,62460.0,62459.0,0.080088]
[1728407674191,0.49833777,62460.0,62459.0,0.081088]
[1728407674693,0.49833777,62460.0,62459.0,0.10511377]
[1728407675282,0.41825077,62460.0,62459.0,0.10511377]
[1728407675985,0.49833777,62460.0,62459.0,0.10511377]
[1728407676185,0.67833777,62460.0,62459.0,0.10511377]
[1728407676381,0.67833777,62460.0,62459.0,0.001]
[1728407677693,0.620887,62460.0,62459.0,0.001]
[1728407678290,0.620887,62460.0,62456.0,0.080092]
[1728407678291,1.801207,62460.0,62440.0,0.00240179]
[1728407678484,0.0801,62451.0,62450.0,0.080097]
[1728407678894,0.3608,62454.0,62453.0,0.080096]
[1728407679396,0.440894,62454.0,62453.0,0.080096]
[1728407680494,0.3608,62454.0,62453.0,0.080096]
[1728407680696,0.3608,62460.0,62453.0,0.260096]
[1728407680895,0.3608,62460.0,62459.0,0.080088]
[1728407681693,0.080082,62464.0,62459.0,0.3608]
[1728407681899,0.080082,62464.0,62463.0,0.080083]
[1728407683385,0.080082,62464.0,62463.0,0.082083]
[1728407684090,0.080082,62464.0,62463.0,0.080083]
[1728407685600,0.080082,62464.0,62463.0,0.07207471]
[1728407685601,0.13752611,62464.0,62463.0,0.07207471]
[1728407685800,0.20325344,62464.0,62463.0,0.07207471]
[1728407686194,0.20325344,62464.0,62463.0,0.09640316]
[1728407687100,0.20425344,62464.0,62463.0,0.09640316]
[1728407688200,0.19818199,62464.0,62463.0,0.26676285]
[1728407688797,0.12417144,62464.0,62463.0,0.26676285]
[1728407688995,0.12417144,62464.0,62463.0,0.08676285]
[1728407689705,0.20425344,62464.0,62463.0,0.08676285]
[1728407689901,0.20425344,62464.0,62463.0,0.02432845]
[1728407690205,0.20425344,62464.0,62459.0,0.3608]
[1728407690206,0.12417144,62464.0,62459.0,0.3608]
[1728407690405,0.080084,62462.0,62461.0,0.080085]
[1728407690595,0.20325544,62462.0,62461.0,0.080085]
[1728407691595,0.12317144,62462.0,62461.0,0.080085]
[1728407692605,0.12317144,62462.0,62461.0,0.05387651]
[1728407692817,0.3608,62466.0,62465.0,0.08008]
[1728407695211,0.3608,62466.0,62460.0,0.18]
[1728407695411,0.3608,62466.0,62459.0,0.38514876]
[1728407695598,0.080086,62463.0,62462.0,0.080084]
[1728407697502,0.084086,62463.0,62462.0,0.080084]
[1728407699816,0.080086,62463.0,62462.0,0.081084]
[1728407700209,0.080081,62466.0,62465.0,0.08008]
[1728407700517,0.080083,62463.0,62462.0,0.081083]
[1728407700722,0.080083,62463.0,62462.0,0.080083]
[1728407700913,0.082083,62463.0,62462.0,0.080083]
[1728407701528,0.080087,62460.0,62459.0,0.10443576]
[1728407701821,0.080087,62460.0,62454.0,0.707934]
[1728407701822,0.080086,62461.0,62460.0,0.080086]
[1728407702412,0.080086,62461.0,62455.0,0.3608]
[1728407702413,0.3628,62463.0,62462.0,0.080084]
[1728407702626,0.442883,62463.0,62462.0,0.080084]
[1728407702834,0.3608,62463.0,62462.0,0.080084]
[1728407703125,0.080074,62470.0,62469.0,0.080075]
[1728407703846,0.002,62463.0,62462.0,0.080084]
[1728407704120,0.4979,62475.0,62474.0,0.080069]
[1728407704121,0.06158598,62475.0,62474.0,0.080069]
[1728407704312,0.1261,62480.0,62479.0,0.080062]
[1728407704513,0.440853,62487.0,62479.0,0.5408]
[1728407704713,0.080054,62486.0,62483.0,0.080057]
[1728407704914,0.080055,62485.0,62479.0,0.5408]
[1728407705115,0.080055,62485.0,62481.0,0.080059]
[1728407705925,0.080055,62485.0,62482.0,0.080058]
[1728407707019,0.080056,62484.0,62482.0,0.080058]
[1728407707225,0.080057,62483.0,62482.0,0.080058]
[1728407707421,0.080057,62483.0,62482.0,0.001]
[1728407707622,0.260057,62483.0,62482.0,0.001]
[1728407707819,0.45719063,62483.0,62475.0,0.00428486]
[1728407708025,0.080069,62474.0,62472.0,0.08007]
[1728407708229,0.12314123,62473.0,62471.0,0.080072]
[1728407708526,0.080069,62474.0,62466.0,0.38563295]
[1728407708527,0.12314123,62472.0,62466.0,0.38563295]
[1728407708722,0.18,62468.0,62466.0,0.38563295]
[1728407708936,0.20321923,62467.0,62466.0,0.02483295]
[1728407709232,0.48394123,62467.0,62455.0,0.3608]
[1728407709422,0.080085,62462.0,62455.0,0.3608]
[1728407709616,0.12314123,62461.0,62455.0,0.3608]
[1728407709821,0.12314123,62460.0,62455.0,0.3608]
[1728407710026,0.12314123,62459.0,62458.0,0.080089]
[1728407712428,0.080092,62456.0,62455.0,0.00845058]
[1728407712732,0.080095,62454.0,62452.0,0.08249875]
[1728407712936,0.12314123,62453.0,62452.0,0.03816888]
[1728407713322,0.20323723,62453.0,62452.0,0.06199802]
[1728407713723,0.12314123,62453.0,62452.0,0.06199802]
[1728407714730,0.12314123,62453.0,62452.0,0.06799802]
[1728407714934,0.12314123,62453.0,62452.0,0.24799802]
[1728407715136,0.07506221,62453.0,62452.0,0.24799802]
[1728407715331,0.07506221,62453.0,62452.0,0.25299802]
[1728407716031,0.080087,62460.0,62453.0,0.080096]
[1728407716328,0.08009,62458.0,62456.0,0.080091]
[1728407716520,0.080086,62461.0,62454.0,0.06370861]
[1728407716837,0.08008,62466.0,62457.0,0.18]
[1728407717032,0.08008,62466.0,62465.0,0.08008]
[1728407717333,0.440879,62467.0,62464.0,0.08008]
[1728407717522,0.08008,62466.0,62464.0,0.08008]
[1728407717724,0.080083,62464.0,62462.0,0.080083]
[1728407718432,0.3608,62473.0,62466.0,0.080079]
[1728407718636,0.3608,62473.0,62472.0,0.260071]
[1728407719536,0.440861,62481.0,62472.0,0.260071]
[1728407719734,0.440861,62481.0,62478.0,0.18]
[1728407719928,0.440861,62481.0,62480.0,0.080061]
[1728407721935,0.441861,62481.0,62480.0,0.080061]
[1728407722334,0.440861,62481.0,62480.0,0.080061]
[1728407722535,0.443861,62481.0,62480.0,0.080061]
[1728407723029,0.64100028,62481.0,62480.0,0.080061]
[1728407725233,0.56093928,62481.0,62480.0,0.260061]
[1728407726033,0.56093928,62481.0,62480.0,0.080061]
[1728407726731,0.64099928,62481.0,62480.0,0.080061]
[1728407726939,0.64099928,62481.0,62480.0,0.04481401]
[1728407727332,0.080061,62480.0,62479.0,0.02475456]
[1728407727631,0.080074,62472.0,62471.0,0.080071]
[1728407727941,0.55793928,62472.0,62463.0,0.34029278]
[1728407728145,0.27721328,62471.0,62470.0,0.080073]
[1728407728339,0.080081,62466.0,62465.0,0.080079]
[1728407728546,0.19713928,62466.0,62465.0,0.08008]
[1728407728748,0.080082,62464.0,62463.0,0.02897116]
[1728407728934,0.080082,62464.0,62457.0,0.18]
[1728407728935,0.27722128,62464.0,62457.0,0.18]
[1728407729241,0.260074,62471.0,62457.0,0.26009]
[1728407729242,0.19713928,62463.0,62457.0,0.26009]
[1728407729440,0.19713928,62462.0,62461.0,0.260085]
[1728407729642,0.19713928,62462.0,62461.0,0.620885]
[1728407730949,0.080077,62468.0,62461.0,0.5408]
[1728407731244,0.080077,62468.0,62462.0,0.080084]
[1728407731545,0.080077,62468.0,62466.0,0.080079]
[1728407732135,0.080078,62467.0,62466.0,0.080079]
[1728407734143,0.084078,62467.0,62466.0,0.080079]
[1728407734650,0.085078,62467.0,62466.0,0.080079]
[1728407736551,0.005,62467.0,62462.0,0.42576]
[1728407736751,0.080082,62464.0,62463.0,0.080082]
[1728407736951,0.080083,62463.0,62462.0,0.42572]
[1728407737152,0.260083,62463.0,62462.0,0.30410019]
[1728407737452,0.18,62463.0,62454.0,0.229394]
[1728407737642,0.440879,62466.0,62454.0,0.1493]
[1728407737643,0.260093,62455.0,62454.0,0.1493]
[1728407738351,0.260093,62455.0,62453.0,0.02885114]
[1728407738352,0.080094,62454.0,62453.0,0.02885114]
[1728407738556,0.080094,62454.0,62450.0,0.28]
[1728407738749,0.080094,62454.0,62453.0,0.080096]
[1728407738950,0.080098,62451.0,62450.0,0.28]
[1728407739153,0.080098,62451.0,62450.0,0.3601]
[1728407739467,0.080098,62451.0,62450.0,0.30844442]
[1728407739468,0.620898,62451.0,62450.0,0.30844442]
[1728407739648,0.620898,62451.0,62450.0,0.17634442]
[1728407739848,0.620898,62451.0,62450.0,0.008]
[1728407740048,0.080103,62447.0,62446.0,0.00240144]
[1728407740256,0.260103,62447.0,62446.0,0.00240144]
[1728407740760,0.080114,62439.0,62438.0,0.0281502]
[1728407740953,0.080117,62437.0,62435.0,0.080119]
[1728407741354,0.080117,62437.0,62432.0,0.2852]
[1728407741562,0.080117,62437.0,62436.0,0.080118]
[1728407741764,0.18,62446.0,62433.0,0.18]
[1728407742060,0.080108,62444.0,62443.0,0.080109]
[1728407742359,0.080108,62444.0,62440.0,0.18]
[1728407742360,0.08011,62442.0,62441.0,0.1348]
[1728407742860,0.080116,62437.0,62436.0,0.080116]
[1728407743047,0.08012,62435.0,62433.0,0.094121]
[1728407743258,0.3608,62441.0,62433.0,0.094121]
[1728407743259,0.08012,62434.0,62433.0,0.094121]
[1728407743466,0.08012,62434.0,62433.0,0.080121]
[1728407743759,0.080121,62433.0,62432.0,0.45026701]
[1728407743964,0.080121,62433.0,62432.0,0.44934701]
[1728407744754,0.001,62434.0,62432.0,0.44934701]
[1728407744958,0.001,62434.0,62433.0,0.080121]
[1728407745364,0.080121,62433.0,62432.0,0.45034701]
[1728407745559,0.080121,62433.0,62432.0,0.52947001]
[1728407745769,0.001,62434.0,62433.0,0.080121]
[1728407746270,0.440918,62436.0,62432.0,0.55835001]
[1728407746271,0.001,62433.0,62432.0,0.55835001]
[1728407746575,0.001,62433.0,62432.0,0.55747001]
[1728407747072,0.081121,62434.0,62433.0,0.014]
[1728407747267,0.001,62434.0,62433.0,0.094121]
[1728407747769,0.001,62434.0,62432.0,0.46418701]
[1728407747770,0.080118,62436.0,62432.0,0.46418701]
[1728407747966,0.080118,62436.0,62434.0,0.080119]
[1728407748166,0.080121,62433.0,62432.0,0.47818701]
[1728407748465,0.080121,62433.0,62432.0,0.434]
[1728407749474,0.080121,62433.0,62432.0,0.448]
[1728407749675,0.080121,62433.0,62432.0,0.1628]
[1728407749969,0.080121,62433.0,62432.0,0.1488]
[1728407750668,0.080121,62433.0,62432.0,0.014]
[1728407750863,0.081121,62433.0,62432.0,0.028]
[1728407751063,0.131121,62433.0,62432.0,0.028]
[1728407751265,0.080136,62422.0,62416.0,0.4327]
[1728407751568,0.080136,62422.0,62421.0,0.080137]
[1728407752674,0.080136,62422.0,62421.0,0.094137]
[1728407753074,0.02400205,62422.0,62421.0,0.094137]
[1728407753271,0.18,62423.0,62421.0,0.094137]
[1728407753472,0.081136,62422.0,62421.0,0.096137]
[1728407754479,0.081136,62422.0,62421.0,0.095137]
[1728407755276,0.081136,62422.0,62421.0,0.015]
[1728407757371,0.081136,62422.0,62421.0,0.016]
[1728407758274,0.191136,62422.0,62421.0,0.016]
[1728407758491,0.672736,62422.0,62421.0,0.002]
[1728407758982,0.192136,62422.0,62421.0,0.002]
[1728407759480,0.192136,62422.0,62415.0,0.02953671]
[1728407759481,0.080143,62416.0,62415.0,0.02953671]
[1728407759679,0.080144,62415.0,62414.0,0.080146]
[1728407760273,0.080148,62412.0,62411.0,0.11082763]
[1728407760575,0.260148,62412.0,62411.0,0.08255151]
[1728407760880,0.080148,62412.0,62411.0,0.08255151]
[1728407761076,0.18,62415.0,62411.0,0.00240251]
[1728407761379,0.260145,62415.0,62414.0,0.080146]
[1728407762588,0.261145,62415.0,62414.0,0.080146]
[1728407763075,0.260145,62415.0,62414.0,0.080146]
[1728407763280,0.261145,62415.0,62414.0,0.080146]
[1728407763483,0.852785,62415.0,62414.0,0.008]
[1728407763969,0.852785,62415.0,62400.0,0.0037]
[1728407763970,0.080154,62408.0,62400.0,0.0037]
[1728407764168,0.080154,62408.0,62395.0,0.587369]
[1728407764169,0.080169,62396.0,62395.0,0.587369]
[1728407764369,0.18,62396.0,62395.0,0.587369]
[1728407764768,0.260166,62399.0,62398.0,0.080166]
[1728407764973,0.3608,62406.0,62398.0,0.260166]
[1728407765183,0.3608,62406.0,62405.0,0.080157]
[1728407765672,0.080149,62412.0,62411.0,0.080148]
[1728407765874,0.080149,62412.0,62411.0,0.08015]
[1728407766183,0.080149,62412.0,62406.0,0.2823]
[1728407766184,0.080152,62410.0,62409.0,0.080152]
[1728407766382,0.3618,62415.0,62407.0,0.218454]
[1728407766383,0.081153,62408.0,62407.0,0.218454]
[1728407766575,0.001,62408.0,62407.0,0.218454]
[1728407767285,0.3608,62415.0,62407.0,0.218454]
[1728407767286,0.3608,62422.0,62421.0,0.080137]
[1728407767973,0.3608,62422.0,62421.0,0.260137]
[1728407768182,0.18437351,62427.0,62426.0,0.080129]
[1728407768382,0.3608,62433.0,62426.0,0.9341605]
[1728407768583,0.3608,62433.0,62430.0,0.12742762]
[1728407768774,0.3608,62433.0,62430.0,0.20755162]
[1728407768775,0.080124,62431.0,62430.0,0.20755162]
[1728407768970,0.080124,62431.0,62430.0,0.44594977]
[1728407769183,0.080124,62431.0,62430.0,0.5733733]
[1728407769376,0.080124,62431.0,62430.0,0.57337354]
[1728407769576,0.080124,62431.0,62430.0,0.44595001]
[1728407769777,0.080124,62431.0,62430.0,0.64764538]
[1728407770486,0.080124,62431.0,62430.0,0.79073712]
[1728407770675,0.080124,62431.0,62430.0,0.87086212]
[1728407770983,0.094124,62431.0,62430.0,0.87186212]
[1728407771279,0.108124,62431.0,62430.0,0.72877038]
[1728407771481,1.22852,62431.0,62430.0,0.17516864]
[1728407771682,1.308644,62431.0,62428.0,0.12762449]
[1728407771883,1.308644,62431.0,62427.0,0.12762449]
[1728407771884,0.18,62429.0,62427.0,0.12762449]
[1728407772072,0.620928,62428.0,62427.0,0.12762449]
[1728407772273,0.080134,62423.0,62419.0,0.14353164]
[1728407772585,0.18,62420.0,62419.0,0.11175612]
[1728407772885,0.080141,62418.0,62417.0,0.11175612]
[1728407773187,0.080143,62417.0,62416.0,0.20783238]
[1728407773377,0.260143,62417.0,62416.0,0.080143]
[1728407773576,0.260143,62417.0,62416.0,0.28188883]
[1728407773978,0.260143,62417.0,62416.0,0.42542047]
[1728407774174,0.260143,62417.0,62416.0,0.28188883]
[1728407774379,0.260143,62417.0,62416.0,0.34527747]
[1728407774584,0.261143,62417.0,62416.0,0.34527747]
[1728407774778,0.263143,62417.0,62416.0,0.34527747]
[1728407774975,0.080144,62415.0,62414.0,0.14353164]
[1728407775180,0.080147,62413.0,62409.0,0.15970338]
[1728407775380,0.080152,62409.0,62408.0,0.00240319]
[1728407775579,0.080152,62409.0,62404.0,0.3608]
[1728407775580,0.080157,62405.0,62404.0,0.3608]
[1728407776077,0.080157,62405.0,62401.0,0.1362]
[1728407776078,0.13765429,62405.0,62401.0,0.1362]
[1728407776280,0.18,62402.0,62398.0,0.080165]
[1728407776592,0.18,62402.0,62394.0,0.44097]
[1728407776593,0.080171,62395.0,62394.0,0.44097]
[1728407776993,0.080164,62400.0,62394.0,0.3608]
[1728407777182,0.08016,62403.0,62402.0,0.08016]
[1728407777382,0.13766465,62403.0,62402.0,0.08016]
[1728407777985,0.05750465,62403.0,62402.0,0.08016]
[1728407778181,0.05750465,62409.0,62402.0,0.5408]
[1728407778383,0.05750465,62410.0,62409.0,0.080152]
[1728407778589,0.001,62413.0,62412.0,0.080148]
[1728407779079,0.001,62413.0,62408.0,0.3608]
[1728407779281,0.260151,62410.0,62408.0,0.440953]
[1728407779489,0.05750465,62409.0,62403.0,0.272]
[1728407779693,0.080159,62404.0,62403.0,0.272]
[1728407780189,0.18,62406.0,62402.0,0.1402]
[1728407780402,0.4937,62403.0,62386.0,0.02935992]
[1728407780584,0.7216,62393.0,62386.0,0.02935992]
[1728407780781,0.62098,62387.0,62386.0,0.02935992]
[1728407780984,0.59831513,62387.0,62378.0,0.080192]
[1728407781185,0.440988,62381.0,62378.0,0.080192]
[1728407781688,0.080193,62377.0,62376.0,0.1434]
[1728407781890,0.260193,62377.0,62376.0,0.1434]
[1728407782983,0.3608,62381.0,62376.0,0.1434]
[1728407783183,0.18,62390.0,62378.0,0.080192]
[1728407783396,0.080178,62389.0,62386.0,0.14350531]
[1728407783589,0.080175,62392.0,62386.0,0.14350531]
[1728407783590,0.080179,62388.0,62387.0,0.52591622]
[1728407784189,0.080179,62388.0,62387.0,0.32406824]
[1728407784499,0.080179,62388.0,62387.0,0.45157149]
[1728407784691,0.080179,62388.0,62387.0,0.32406824]
[1728407784886,0.620979,62388.0,62387.0,0.14876283]
[1728407785090,0.08018,62387.0,62384.0,0.12751483]
[1728407785384,0.08018,62387.0,62374.0,0.0037]
[1728407785385,0.080187,62382.0,62381.0,0.12751483]
[1728407785590,0.080189,62380.0,62379.0,0.12751483]
[1728407785787,0.260189,62380.0,62379.0,0.12751483]
[1728407785983,0.080191,62379.0,62376.0,0.07751483]
[1728407786195,0.080191,62379.0,62378.0,0.111518]
[1728407786395,0.741111,62379.0,62378.0,0.12223345]
[1728407786699,1.461111,62379.0,62378.0,0.12223345]
[1728407787098,0.080197,62374.0,62372.0,0.111518]
[1728407787298,0.080197,62374.0,62363.0,0.3608]
[1728407787299,0.620997,62374.0,62370.0,0.111518]
[1728407787599,0.620997,62374.0,62363.0,0.3608]
[1728407787600,0.080204,62369.0,62368.0,0.111518]
[1728407787899,0.080205,62368.0,62367.0,0.111518]
[1728407788100,0.18,62368.0,62363.0,0.3608]
[1728407788402,0.080198,62373.0,62363.0,0.3608]
[1728407788403,0.26021,62364.0,62363.0,0.3608]
[1728407788785,0.18,62368.0,62363.0,0.441011]
[1728407788992,0.18,62368.0,62367.0,0.080206]
[1728407789285,0.260205,62368.0,62367.0,0.080206]
[1728407789490,0.210205,62368.0,62367.0,0.080206]
[1728407790097,0.08021,62364.0,62363.0,0.3608]
[1728407790305,0.10229583,62364.0,62363.0,0.56269345]
[1728407790605,0.10229583,62364.0,62363.0,0.3608]
[1728407790606,0.18250583,62364.0,62363.0,0.3608]
[1728407791395,0.18450583,62364.0,62363.0,0.3628]
[1728407793006,0.18450583,62364.0,62363.0,0.53814815]
[1728407793195,0.13377926,62367.0,62363.0,0.61835915]
[1728407793396,0.080209,62365.0,62364.0,0.28653292]
[1728407793596,0.080204,62369.0,62363.0,0.47398477]
[1728407793597,0.08021,62364.0,62363.0,0.47398477]
[1728407793892,0.08021,62364.0,62363.0,0.64933291]
[1728407794299,0.08021,62364.0,62363.0,0.002]
[1728407794507,0.080215,62360.0,62359.0,0.1345]
[1728407794805,0.260215,62360.0,62359.0,0.1345]
[1728407795007,0.260215,62360.0,62359.0,0.28331046]
[1728407795194,0.001,62365.0,62359.0,0.14881046]
[1728407795402,0.080214,62361.0,62360.0,0.14881046]
[1728407795699,0.080214,62361.0,62360.0,0.22902546]
[1728407795700,0.260214,62361.0,62360.0,0.22902546]
[1728407796307,0.08121,62364.0,62360.0,0.14881046]
[1728407796499,0.08121,62364.0,62363.0,0.17643882]
[1728407797098,0.001,62364.0,62363.0,0.59081675]
[1728407797299,0.080207,62367.0,62363.0,0.50960575]
[1728407797504,0.18,62369.0,62368.0,0.080205]
[1728407797806,0.260204,62369.0,62368.0,0.080205]
[1728407798198,0.20401848,62369.0,62368.0,0.080205]
[1728407798403,0.080209,62365.0,62364.0,0.080209]
[1728407798604,0.260209,62365.0,62364.0,0.441009]
[1728407798795,0.18,62365.0,62364.0,0.441009]
[1728407799105,0.080204,62369.0,62368.0,0.080204]
[1728407799497,0.080199,62373.0,62367.0,0.18]
[1728407799804,0.080199,62373.0,62369.0,0.3608]
[1728407800012,0.080199,62373.0,62372.0,0.0802]
[1728407800305,0.080203,62370.0,62368.0,0.26662129]
[1728407800608,0.260203,62370.0,62369.0,0.441004]
[1728407800796,0.260203,62370.0,62369.0,0.080204]
[1728407801400,0.260203,62370.0,62369.0,0.12791324]
[1728407801600,0.260203,62370.0,62369.0,0.080204]
[1728407801801,0.080199,62373.0,62372.0,0.0802]
[1728407802200,0.0802,62372.0,62370.0,0.04770868]
[1728407802396,0.18,62371.0,62369.0,0.04770868]
[1728407802600,0.080204,62369.0,62368.0,0.04770868]
[1728407802799,0.080204,62369.0,62368.0,0.080205]
[1728407803607,0.080204,62369.0,62368.0,0.14388132]
[1728407803904,0.541004,62369.0,62368.0,0.001]
[1728407804109,1.157604,62369.0,62368.0,0.001]
[1728407805320,1.157604,62369.0,62368.0,0.27206667]
[1728407805700,0.080204,62369.0,62368.0,0.20346295]
[1728407805905,0.260204,62369.0,62368.0,0.12325795]
[1728407806111,1.451204,62369.0,62368.0,0.12325795]
[1728407806610,0.370204,62369.0,62368.0,0.12325795]
[1728407807310,0.370204,62369.0,62368.0,0.27206179]
[1728407807805,0.370204,62369.0,62368.0,0.12325795]
[1728407808007,0.260204,62369.0,62368.0,0.27206206]
[1728407808206,0.18,62369.0,62368.0,0.27206206]
[1728407808413,0.260204,62369.0,62368.0,0.27206206]
[1728407809805,0.17993487,62372.0,62368.0,0.87301723]
[1728407810105,0.080202,62370.0,62369.0,0.64830692]
[1728407810507,0.080202,62370.0,62369.0,0.72851092]
[1728407812001,0.081202,62370.0,62369.0,0.72851092]
[1728407812201,0.001,62370.0,62369.0,0.72851092]
[1728407812406,0.001,62370.0,62369.0,1.33100812]
[1728407812606,0.080199,62373.0,62372.0,0.0802]
[1728407812810,0.260199,62373.0,62372.0,0.80838839]
[1728407813000,0.260199,62373.0,62372.0,0.64822678]
[1728407813209,0.10769586,62373.0,62372.0,0.06405368]
[1728407813411,0.10769586,62373.0,62369.0,0.080203]
[1728407813412,0.080202,62370.0,62369.0,0.16119011]
[1728407813708,0.086202,62370.0,62369.0,0.28251231]
[1728407813912,0.086202,62370.0,62368.0,0.07845211]
[1728407814114,0.080204,62369.0,62368.0,0.07845211]
[1728407814314,0.080204,62369.0,62368.0,0.12224476]
[1728407814621,0.08021,62364.0,62362.0,0.080212]
[1728407814804,0.37021,62364.0,62363.0,0.48305161]
[1728407815112,0.26021,62364.0,62363.0,0.56326261]
[1728407815719,0.080207,62367.0,62366.0,0.080207]
[1728407816009,0.200207,62367.0,62366.0,0.20245861]
[1728407816210,0.080207,62367.0,62366.0,0.20245861]
[1728407816601,0.28,62371.0,62366.0,0.20245861]
[1728407816602,0.080205,62370.0,62369.0,0.080203]
[1728407816805,0.080205,62368.0,62363.0,0.45688053]
[1728407817003,0.080206,62367.0,62366.0,0.080207]
[1728407817207,0.080206,62367.0,62366.0,0.20245189]
[1728407817414,0.180206,62367.0,62366.0,0.12224489]
[1728407817611,0.08021,62364.0,62363.0,0.3608]
[1728407817811,0.20021,62364.0,62363.0,0.48305164]
[1728407818724,0.20521,62364.0,62363.0,0.48305164]
[1728407819518,0.21021,62364.0,62363.0,0.48305164]
[1728407820415,0.21021,62364.0,62363.0,0.80720706]
[1728407820416,0.69125,62364.0,62363.0,0.80720706]
[1728407820718,0.69125,62364.0,62363.0,1.16919401]
[1728407820919,0.69125,62364.0,62363.0,0.96728853]
[1728407821219,0.69125,62364.0,62363.0,0.80721757]
[1728407821819,1.29125,62364.0,62363.0,0.44641757]
[1728407822713,1.29125,62364.0,62363.0,0.38327201]
[1728407822909,1.29125,62364.0,62363.0,0.27106146]
[1728407823109,1.01,62364.0,62355.0,0.12824526]
[1728407823321,1.01,62364.0,62344.0,0.16008147]
[1728407823322,0.080236,62344.0,62343.0,0.0037]
[1728407823625,0.470236,62344.0,62343.0,0.17540314]
[1728407824320,0.080241,62340.0,62339.0,0.441882]
[1728407824513,0.080241,62340.0,62339.0,0.6164588]
[1728407825607,0.081241,62340.0,62339.0,0.61745982]
[1728407826022,0.002,62340.0,62339.0,0.62045982]
[1728407826227,0.192241,62340.0,62339.0,0.004]
[1728407826519,1.273481,62340.0,62339.0,0.004]
[1728407827222,0.080254,62330.0,62329.0,0.3608]
[1728407827415,0.360254,62330.0,62329.0,0.61649218]
[1728407827724,0.080256,62328.0,62327.0,0.0286222]
[1728407827919,0.200256,62328.0,62327.0,0.0286222]
[1728407828124,0.080264,62322.0,62321.0,0.080264]
[1728407828328,0.31207467,62322.0,62321.0,0.080264]
[1728407828626,0.080269,62318.0,62317.0,0.369234]
[1728407829209,0.080269,62318.0,62317.0,0.288964]
[1728407829626,0.080269,62318.0,62312.0,0.133]
[1728407829927,0.080269,62318.0,62312.0,0.213276]
[1728407829928,0.28,62317.0,62312.0,0.213276]
[1728407830224,0.080276,62313.0,62312.0,0.213276]
[1728407830425,0.080276,62313.0,62312.0,0.574076]
[1728407830724,0.080276,62313.0,62312.0,0.3608]
[1728407831222,0.080276,62313.0,62312.0,0.09559864]
[1728407831415,0.001,62313.0,62310.0,0.12626767]
[1728407831632,0.28,62311.0,62310.0,0.12626767]
[1728407831820,0.28,62311.0,62310.0,0.03066903]
[1728407832131,0.28,62311.0,62309.0,0.09553525]
[1728407832132,0.08028,62310.0,62309.0,0.09553525]
[1728407832314,0.080283,62308.0,62305.0,0.09553525]
[1728407832512,0.080283,62308.0,62304.0,0.3608]
[1728407832513,0.28,62306.0,62304.0,0.53662225]
[1728407833022,0.28,62306.0,62304.0,0.080287]
[1728407833323,0.28,62306.0,62305.0,0.080286]
[1728407833530,0.001,62313.0,62304.0,0.09553525]
[1728407833717,0.001,62310.0,62309.0,0.080281]
[1728407834024,0.001,62310.0,62309.0,0.441081]
[1728407834622,0.28,62326.0,62309.0,0.48590348]
[1728407834826,0.080269,62319.0,62318.0,0.06359785]
[1728407835029,0.64176001,62320.0,62319.0,0.216268]
[1728407835322,0.3608,62325.0,62319.0,0.136]
[1728407835521,0.080259,62327.0,62324.0,0.080262]
[1728407835823,0.180259,62327.0,62324.0,0.14384521]
[1728407836124,0.28,62325.0,62317.0,0.09553525]
[1728407836317,0.28,62319.0,62318.0,0.3608]
[1728407836519,0.28,62319.0,62318.0,0.080269]
[1728407836713,1.4814,62319.0,62317.0,0.06357041]
[1728407836918,0.360269,62318.0,62317.0,0.06357041]
[1728407837114,0.470269,62318.0,62316.0,0.06357041]
[1728407837318,0.080271,62317.0,62316.0,0.06357041]
[1728407837517,0.080272,62316.0,62315.0,0.06357041]
[1728407837720,0.190272,62316.0,62314.0,0.080274]
[1728407838119,0.11,62316.0,62311.0,0.4994]
[1728407838322,0.080277,62312.0,62311.0,0.4994]
[1728407838524,0.190277,62312.0,62311.0,0.4994]
[1728407839138,0.190277,62312.0,62311.0,0.1386]
[1728407839516,0.191277,62312.0,62311.0,0.218878]
[1728407839924,0.001,62312.0,62311.0,0.218878]
[1728407840219,0.002,62312.0,62311.0,0.218878]
[1728407841533,0.082277,62312.0,62311.0,0.218878]
[1728407842023,0.080278,62311.0,62310.0,0.3608]
[1728407842224,0.180278,62311.0,62310.0,0.3608]
[1728407842826,0.661718,62311.0,62310.0,0.3608]
[1728407843234,0.52520323,62311.0,62310.0,0.3608]
[1728407843525,0.60548123,62311.0,62310.0,0.3608]